bitfinex-derivatives/quotes_BNBF0:USTF0_20250617
["timestamp","ask_amount","ask_price","bid_price","bid_amount"]
[1750179031420,2.15550321,642.58,642.57,1.095]
[1750179031622,1.01016997,642.58,642.57,1.095]
[1750179043629,1.01016997,642.58,642.08,1.132]
[1750179043832,1.14202264,642.52,642.08,1.132]
[1750179044030,1.01016997,642.51,642.08,1.132]
[1750179044234,1.01016997,642.5,642.08,1.132]
[1750179044432,1.01016997,642.49,642.08,1.132]
[1750179044631,1.01016997,642.48,642.08,1.132]
[1750179044830,1.01016997,642.47,642.08,1.132]
[1750179045132,1.01016997,642.46,642.08,1.132]
[1750179045335,1.01016997,642.45,642.08,1.132]
[1750179045533,1.01016997,642.44,642.08,1.132]
[1750179045731,1.01016997,642.43,642.08,1.132]
[1750179045936,1.01016997,642.42,642.08,1.132]
[1750179046133,1.01016997,642.41,642.08,1.132]
[1750179046432,1.01016997,642.4,642.09,1.422]
[1750179046733,1.01016997,642.39,642.09,1.422]
[1750179046934,1.01016997,642.38,642.09,1.422]
[1750179047132,1.01016997,642.37,642.09,1.422]
[1750179047333,1.01016997,642.36,642.09,1.422]
[1750179047533,1.01016997,642.35,642.09,1.422]
[1750179047734,1.01016997,642.34,642.09,1.422]
[1750179047933,1.01016997,642.33,642.09,1.422]
[1750179048137,1.01016997,642.32,642.09,1.422]
[1750179048340,1.01016997,642.31,642.09,1.422]
[1750179048535,1.01016997,642.54,642.09,1.422]
[1750179048835,1.01016997,642.53,642.09,1.422]
[1750179049140,1.01016997,642.52,642.09,1.422]
[1750179049335,1.01016997,642.51,642.09,1.422]
[1750179049636,1.01016997,642.5,642.09,1.422]
[1750179049835,1.01016997,642.49,642.09,1.422]
[1750179050034,1.01016997,642.48,642.09,1.422]
[1750179050239,1.01016997,642.47,642.09,1.422]
[1750179050434,1.01016997,642.46,642.09,1.422]
[1750179050638,1.01016997,642.45,642.09,1.422]
[1750179050835,1.01016997,642.44,642.09,1.422]
[1750179051040,1.01016997,642.43,642.09,1.422]
[1750179051337,1.01016997,642.42,642.09,1.422]
[1750179051537,1.01016997,642.41,642.09,1.422]
[1750179051735,1.01016997,642.4,642.09,1.422]
[1750179051939,1.01016997,642.39,642.09,1.422]
[1750179052141,1.01016997,642.38,642.09,1.422]
[1750179052344,1.01016997,642.37,642.09,1.422]
[1750179052540,1.01016997,642.36,642.09,1.422]
[1750179052741,1.01016997,642.35,642.09,1.422]
[1750179053037,1.01016997,642.34,642.09,1.422]
[1750179056937,1.00755197,642.5,642.09,1.422]
[1750179057140,1.00755197,642.49,642.09,1.422]
[1750179057441,1.14182151,642.68,642.09,1.422]
[1750179057442,1.00755197,642.48,642.09,1.422]
[1750179057641,1.00755197,642.47,642.09,1.422]
[1750179057939,1.00755197,642.46,642.09,1.422]
[1750179058140,1.00755197,642.45,642.09,1.422]
[1750179058439,1.00755197,642.44,642.09,1.422]
[1750179058740,1.00755197,642.43,642.09,1.422]
[1750179059043,1.00755197,642.42,642.09,1.422]
[1750179059244,1.00755197,642.41,642.09,1.422]
[1750179059442,1.00755197,642.4,642.09,1.422]
[1750179059645,1.00755197,642.39,642.09,1.422]
[1750179059844,1.00755197,642.38,642.09,1.422]
[1750179060140,1.00755197,642.37,642.09,1.422]
[1750179060343,1.00755197,642.36,642.09,1.422]
[1750179060546,2.14937348,642.66,642.09,1.422]
[1750179060742,1.00755197,642.65,642.09,1.422]
[1750179060942,1.00755197,642.64,642.09,1.422]
[1750179061143,1.14182151,642.66,642.09,1.422]
[1750179061343,1.14182151,642.69,642.09,1.422]
[1750179061547,1.14182151,642.68,642.09,1.422]
[1750179061742,1.14182151,642.7,642.09,1.422]
[1750179061944,1.14182151,642.64,642.09,1.422]
[1750179062247,1.14182151,642.65,642.09,1.422]
[1750179062442,1.14182151,642.64,642.09,1.422]
[1750179062843,1.14182151,642.66,642.09,1.422]
[1750179063043,0.27071916,642.98,642.09,1.422]
[1750179063044,1.14182151,642.64,642.09,1.422]
[1750179063348,1.14182151,642.65,642.09,1.422]
[1750179063650,1.14182151,642.61,642.09,1.422]
[1750179063849,1.14182151,642.63,642.09,1.422]
[1750179065647,1.14182151,642.64,642.09,1.422]
[1750179066049,1.14182151,642.66,642.09,1.422]
[1750179066247,1.14182151,642.68,642.09,1.422]
[1750179066646,1.14182151,642.71,642.09,1.422]
[1750179067550,1.14182151,642.72,642.09,1.422]
[1750179068952,1.14182151,642.76,642.1,1.509]
[1750179069151,1.14182151,642.74,642.1,1.509]
[1750179069351,1.14182151,642.74,642.11,1.457]
[1750179070051,1.14182151,642.75,642.11,1.457]
[1750179070652,1.14182151,642.74,642.11,1.457]
[1750179071356,1.14182151,642.73,642.11,1.457]
[1750179072357,1.14182151,642.7,642.11,1.457]
[1750179072857,1.14182151,642.69,642.11,1.457]
[1750179073050,1.14182151,642.7,642.11,1.457]
[1750179073356,1.14182151,642.69,642.11,1.457]
[1750179073557,1.14182151,642.68,642.11,1.457]
[1750179074056,1.14182151,642.66,642.11,1.457]
[1750179074254,1.14182151,642.64,642.11,1.457]
[1750179074551,1.14182151,642.63,642.11,1.457]
[1750179075457,1.14182151,642.62,642.11,1.457]
[1750179076658,1.14182151,642.58,642.11,1.457]
[1750179078457,1.14182151,642.57,642.11,1.457]
[1750179078660,1.14182151,642.64,642.11,1.457]
[1750179078855,1.14182151,642.65,642.11,1.457]
[1750179079460,1.14182151,642.66,642.11,1.457]
[1750179079756,1.14182151,642.7,642.11,1.457]
[1750179079960,1.14182151,642.75,642.11,1.457]
[1750179080160,1.14182151,642.73,642.11,1.457]
[1750179080961,1.14182151,642.74,642.11,1.457]
[1750179081159,1.14182151,642.75,642.11,1.457]
[1750179081562,1.14182151,642.74,642.11,1.457]
[1750179082257,1.14182151,642.75,642.11,1.457]
[1750179082458,1.14182151,642.74,642.11,1.457]
[1750179082863,1.14182151,642.75,642.11,1.457]
[1750179083562,1.14182151,642.74,642.11,1.457]
[1750179084666,1.14182151,642.73,642.11,1.457]
[1750179084865,1.14182151,642.73,642.12,1.031]
[1750179085462,1.14182151,642.74,642.12,1.031]
[1750179085662,1.14182151,642.71,642.12,1.031]
[1750179085964,1.14182151,642.69,642.12,1.031]
[1750179087467,1.14182151,642.68,642.12,1.031]
[1750179087766,1.14182151,642.74,642.12,1.031]
[1750179087964,1.14182151,642.76,642.12,1.031]
[1750179088167,1.14182151,642.77,642.12,1.031]
[1750179088367,1.14182151,642.76,642.12,1.031]
[1750179088567,1.14182151,642.78,642.12,1.031]
[1750179088870,1.14182151,642.79,642.12,1.031]
[1750179090469,1.14182151,642.79,642.13,1.457]
[1750179090668,1.14182151,642.8,642.13,1.457]
[1750179091066,0.27071916,642.98,642.13,1.457]
[1750179091067,1.14182151,642.79,642.13,1.457]
[1750179091371,1.14182151,642.72,642.13,1.457]
[1750179091566,1.14182151,642.7,642.13,1.457]
[1750179091767,1.14182151,642.68,642.13,1.457]
[1750179092272,1.14182151,642.66,642.13,1.457]
[1750179092472,1.14182151,642.67,642.13,1.457]
[1750179093275,1.14182151,642.66,642.13,1.457]
[1750179093673,1.14182151,642.67,642.13,1.457]
[1750179094475,1.14182151,642.66,642.13,1.457]
[1750179094674,1.14182151,642.65,642.13,1.457]
[1750179096975,1.14182151,642.66,642.13,1.457]
[1750179097975,1.14182151,642.65,642.13,1.457]
[1750179098175,1.14182151,642.64,642.13,1.457]
[1750179100577,1.14182151,642.63,642.13,1.457]
[1750179103077,1.14182151,642.66,642.13,1.457]
[1750179103282,1.14182151,642.61,642.13,1.457]
[1750179103582,1.14182151,642.63,642.13,1.457]
[1750179103782,1.14182151,642.59,642.13,1.457]
[1750179104076,1.14182151,642.57,642.13,1.457]
[1750179104280,1.14182151,642.54,642.13,1.457]
[1750179104784,1.14182151,642.52,642.13,1.457]
[1750179104981,1.14182151,642.51,642.13,1.457]
[1750179105385,1.14182151,642.5,642.13,1.457]
[1750179105780,1.14182151,642.5,642.14,1.553]
[1750179105985,1.14182151,642.47,642.14,1.553]
[1750179106386,1.14182151,642.46,642.14,1.553]
[1750179106882,1.14182151,642.47,642.14,1.553]
[1750179107185,1.14182151,642.46,642.14,1.553]
[1750179107983,1.14182151,642.42,642.14,1.553]
[1750179108185,1.14182151,642.43,642.14,1.553]
[1750179108686,1.14182151,642.35,642.14,1.553]
[1750179109284,1.14182151,642.36,642.14,1.553]
[1750179109588,1.14182151,642.42,642.14,1.553]
[1750179110189,1.14182151,642.43,642.14,1.553]
[1750179112386,1.14182151,642.44,642.14,1.553]
[1750179113587,1.14182151,642.46,642.14,1.553]
[1750179114986,1.14182151,642.52,642.14,1.553]
[1750179115688,1.14182151,642.53,642.14,1.553]
[1750179116189,1.14182151,642.52,642.14,1.553]
[1750179116393,1.14182151,642.53,642.14,1.553]
[1750179116689,1.14182151,642.51,642.14,1.553]
[1750179118089,1.14182151,642.49,642.14,1.553]
[1750179118292,1.14182151,642.5,642.14,1.553]
[1750179119395,1.14182151,642.45,642.14,1.553]
[1750179119695,1.14182151,642.47,642.14,1.553]
[1750179120896,1.14182151,642.44,642.14,1.553]
[1750179121093,1.14182151,642.43,642.14,1.553]
[1750179121791,1.14182151,642.44,642.15,1.152]
[1750179121989,1.14182151,642.45,642.15,1.152]
[1750179122890,0.27071916,642.98,642.15,1.152]
[1750179122891,1.14182151,642.44,642.15,1.152]
[1750179123091,1.14182151,642.43,642.15,1.152]
[1750179124995,1.14182151,642.42,642.15,1.152]
[1750179125194,1.14182151,642.43,642.15,1.152]
[1750179125389,1.14182151,642.41,642.15,1.152]
[1750179126092,1.14182151,642.49,642.15,1.152]
[1750179126895,1.14182151,642.5,642.15,1.152]
[1750179127798,1.14182151,642.51,642.15,1.152]
[1750179131695,1.14182151,642.44,642.16,0.94]
[1750179131995,1.14182151,642.43,642.16,0.94]
[1750179132193,1.14182151,642.44,642.16,0.94]
[1750179132498,1.14182151,642.43,642.16,0.94]
[1750179133302,1.14182151,642.42,642.16,0.94]
[1750179133602,1.14182151,642.41,642.16,0.94]
[1750179133803,1.14182151,642.4,642.16,0.94]
[1750179134201,1.14182151,642.38,642.16,0.94]
[1750179134601,1.14182151,642.31,642.16,0.94]
[1750179135201,1.14182151,642.3,642.16,0.94]
[1750179135505,1.14182151,642.28,642.16,0.94]
[1750179135705,1.14182151,642.3,642.16,0.94]
[1750179135902,1.14182151,642.33,642.16,0.94]
[1750179136107,1.14182151,642.38,642.16,0.94]
[1750179136707,1.14182151,642.39,642.16,0.94]
[1750179137104,1.14182151,642.38,642.16,0.94]
[1750179137606,1.14182151,642.32,642.16,0.94]
[1750179137803,1.14182151,642.3,642.16,0.94]
[1750179139006,1.14182151,642.19,642.16,0.94]
[1750179139706,2.30368127,642.58,642.16,0.94]
[1750179139707,1.14182151,642.21,642.16,0.94]
[1750179140010,1.14182151,642.19,642.16,0.94]
[1750179140206,1.14182151,642.2,642.16,0.94]
[1750179140906,1.14182151,642.19,642.16,0.94]
[1750179141711,1.14182151,642.2,642.16,0.94]
[1750179143312,1.14182151,642.17,642.16,0.94]
[1750179143512,1.14182151,642.18,642.16,0.94]
[1750179145009,1.14182151,642.17,642.16,0.94]
[1750179145312,1.53578751,642.32,642.16,0.94]
[1750179145513,1.84716363,642.31,642.16,0.94]
[1750179145708,1.84716848,642.3,642.16,0.94]
[1750179146013,0.27071916,642.98,642.16,0.94]
[1750179146014,1.14240598,642.22,642.16,0.94]
[1750179148511,1.14240598,642.21,642.16,0.94]
[1750179148809,1.14240598,642.22,642.16,0.94]
[1750179149013,1.14240598,642.18,642.16,0.94]
[1750179149214,1.14240598,642.17,642.16,0.94]
[1750179149611,1.14240598,642.18,642.16,0.94]
[1750179149811,0.31138582,642.29,642.16,0.94]
[1750179150010,1.53578751,642.26,642.16,0.94]
[1750179150212,0.31140521,642.25,642.16,0.94]
[1750179151416,1.53578751,642.23,642.16,0.94]
[1750179151617,1.53578751,642.22,642.16,0.94]
[1750179152714,1.84720242,642.23,642.16,0.94]
[1750179153218,1.53578751,642.22,642.16,0.94]
[1750179154210,1.53578751,642.21,642.16,0.94]
[1750179155116,0.31141491,642.23,642.16,0.94]
[1750179155519,1.52504837,642.22,642.16,0.94]
[1750179155814,1.52504837,642.19,642.16,0.94]
[1750179157718,1.52504837,642.17,642.16,0.94]
[1750179158120,1.52504837,642.18,642.16,0.94]
[1750179158320,1.52504837,642.17,642.16,0.94]
[1750179160819,0.31141491,642.23,642.16,0.94]
[1750179166129,0.31141491,642.23,641.69,1.458]
[1750179166327,1.14351565,641.94,641.69,1.458]
[1750179166629,1.14351565,641.93,641.69,1.458]
[1750179167027,1.14351565,641.96,641.69,1.458]
[1750179168529,1.14351565,641.94,641.69,1.458]
[1750179169129,1.14351565,641.93,641.69,1.458]
[1750179169326,1.14351565,641.94,641.69,1.458]
[1750179169930,1.14351565,641.93,641.69,1.458]
[1750179170327,1.14351565,641.94,641.69,1.458]
[1750179170526,1.14351565,641.93,641.69,1.458]
[1750179170731,1.14351565,641.94,641.69,1.458]
[1750179171130,1.14351565,641.93,641.69,1.458]
[1750179172631,1.14351565,641.94,641.69,1.458]
[1750179172927,1.14351565,641.9,641.69,1.458]
[1750179176026,1.14351565,641.91,641.69,1.458]
[1750179176834,1.14351565,642.06,641.69,1.458]
[1750179177031,0.31150221,642.05,641.69,1.458]
[1750179178033,0.31150221,642.05,641.67,1.346]
[1750179179831,1.14351565,642.04,641.67,1.346]
[1750179180039,0.31151192,642.03,641.67,1.346]
[1750179181034,1.14351565,641.98,641.67,1.346]
[1750179181336,1.14351565,642.0,641.67,1.346]
[1750179181536,1.14351565,641.98,641.67,1.346]
[1750179181739,0.31151192,642.03,641.67,1.346]
[1750179181740,1.14351565,641.89,641.67,1.346]
[1750179183038,1.14351565,641.91,641.67,1.346]
[1750179183238,1.14351565,641.95,641.67,1.346]
[1750179184539,1.14351565,641.96,641.67,1.346]
[1750179184842,1.14351565,641.92,641.67,1.346]
[1750179185239,1.14351565,641.93,641.67,1.346]
[1750179186139,1.14351565,641.97,641.67,1.346]
[1750179186339,1.14351565,641.99,641.67,1.346]
[1750179186544,1.14351565,642.0,641.67,1.346]
[1750179186743,1.14351565,641.99,641.67,1.346]
[1750179186941,1.14351565,642.0,641.67,1.346]
[1750179187342,1.14351565,642.01,641.67,1.346]
[1750179187544,1.14351565,642.02,641.67,1.346]
[1750179187747,1.14351565,642.01,641.67,1.346]
[1750179188247,1.14351565,642.03,641.67,1.346]
[1750179189048,1.52468754,642.17,641.64,1.093]
[1750179189049,1.14351565,642.02,641.64,1.093]
[1750179189545,1.14351565,642.03,641.64,1.093]
[1750179189750,1.14351565,642.02,641.64,1.093]
[1750179190444,1.14351565,641.99,641.64,1.093]
[1750179190644,1.14351565,641.97,641.64,1.093]
[1750179191447,1.14351565,641.96,641.64,1.093]
[1750179192651,1.14351565,641.95,641.64,1.093]
[1750179192950,1.14351565,641.95,641.5,2.474]
[1750179193450,1.14351565,641.94,641.5,1.016]
[1750179193852,1.14351565,641.95,641.5,1.016]
[1750179194449,5.33766931,643.12,641.5,1.016]
[1750179194450,1.14351565,641.92,641.5,1.016]
[1750179195452,1.14351565,641.91,641.51,1.495]
[1750179195749,1.14351565,641.9,641.51,1.495]
[1750179196452,1.14351565,641.91,641.51,1.495]
[1750179196650,1.14351565,641.92,641.51,1.495]
[1750179197656,1.14351565,641.91,641.51,1.495]
[1750179197853,1.14351565,641.92,641.51,1.495]
[1750179198652,1.14351565,641.91,641.51,1.495]
[1750179199359,1.14351565,641.92,641.51,1.495]
[1750179200156,1.14351565,641.91,641.51,1.495]
[1750179200856,1.14351565,641.9,641.51,1.495]
[1750179201758,1.14351565,641.89,641.51,1.495]
[1750179201954,1.14351565,641.88,641.51,1.495]
[1750179202458,1.14351565,641.9,641.51,1.495]
[1750179203757,1.14351565,641.91,641.51,1.495]
[1750179205159,0.27119806,641.82,641.51,1.495]
[1750179218566,1.14351565,641.8,641.51,1.495]
[1750179219070,1.14351565,641.79,641.51,1.495]
[1750179219571,1.14351565,641.78,641.51,1.495]
[1750179220269,1.14351565,641.79,641.51,1.495]
[1750179221066,1.14351565,641.78,641.51,1.495]
[1750179221269,1.14351565,641.77,641.51,1.495]
[1750179222575,1.14351565,641.76,641.51,1.495]
[1750179225273,1.14351565,641.76,641.51,1.495]
[1750179226574,1.14351565,641.79,641.51,1.495]
[1750179226778,1.14351565,641.73,641.51,1.495]
[1750179227474,1.14351565,641.72,641.51,1.495]
[1750179227978,1.14351565,641.71,641.51,1.495]
[1750179228272,1.14351565,641.72,641.51,1.495]
[1750179228479,1.14351565,641.7,641.51,1.495]
[1750179229778,1.14351565,641.71,641.51,1.495]
[1750179230279,1.14351565,641.67,641.51,1.495]
[1750179230474,1.14351565,641.63,641.51,1.495]
[1750179230978,1.14351565,641.61,641.51,1.495]
[1750179231376,1.14351565,641.63,641.51,1.495]
[1750179232273,1.14351565,641.64,641.51,1.495]
[1750179232579,1.14351565,641.79,641.51,1.495]
[1750179233280,1.14351565,641.8,641.51,1.495]
[1750179233677,1.14351565,641.78,641.51,1.495]
[1750179233978,1.14351565,641.76,641.51,1.495]
[1750179234382,1.14351565,641.76,641.44,1.476]
[1750179235279,1.14351565,641.75,641.44,1.476]
[1750179236478,1.14351565,641.76,641.44,1.476]
[1750179237079,1.14351565,641.77,641.44,1.476]
[1750179237677,1.14351565,641.76,641.44,1.476]
[1750179238283,1.14351565,641.75,641.44,1.476]
[1750179238484,1.14351565,641.74,641.45,1.186]
[1750179238780,1.14351565,641.75,641.45,1.186]
[1750179239080,1.14351565,641.76,641.45,1.186]
[1750179239485,1.14351565,641.75,641.45,1.186]
[1750179240986,1.14351565,641.74,641.45,1.186]
[1750179241281,1.14351565,641.73,641.45,1.186]
[1750179241480,1.14351565,641.72,641.45,1.186]
[1750179241784,1.14351565,641.71,641.45,1.186]
[1750179242084,1.14351565,641.7,641.45,1.186]
[1750179242480,1.14351565,641.69,641.45,1.186]
[1750179242684,1.14351565,641.7,641.45,1.186]
[1750179243085,1.14351565,641.63,641.45,1.186]
[1750179243285,1.52468754,641.76,641.45,1.186]
[1750179243286,1.14351565,641.64,641.45,1.186]
[1750179244181,1.14351565,641.63,641.45,1.186]
[1750179244386,1.14351565,641.64,641.45,1.186]
[1750179245684,1.14351565,641.65,641.45,1.186]
[1750179246288,1.14351565,641.7,641.45,1.186]
[1750179246583,1.14351565,641.75,641.45,1.186]
[1750179247289,1.14351565,641.76,641.45,1.186]
[1750179247989,0.27119806,641.82,641.45,1.186]
[1750179251889,1.41471371,641.82,641.45,1.186]
[1750179252084,1.14351565,641.78,641.45,1.186]
[1750179252485,1.14351565,641.77,641.45,1.186]
[1750179253490,1.14351565,641.76,641.45,1.186]
[1750179254386,1.14351565,641.77,641.45,1.186]
[1750179255489,1.14351565,641.78,641.45,1.186]
[1750179255691,0.27119806,641.82,641.45,1.186]
[1750179256590,0.27119806,641.82,641.46,1.172]
[1750179256791,1.41471371,641.82,641.46,1.172]
[1750179257291,0.27119806,641.82,641.46,1.172]
[1750179261188,1.41471371,641.82,641.46,1.172]
[1750179261389,1.14351565,641.8,641.46,1.172]
[1750179261890,1.14351565,641.79,641.46,1.172]
[1750179262290,1.14351565,641.78,641.46,1.172]
[1750179262694,1.14351565,641.77,641.46,1.172]
[1750179262896,1.14351565,641.74,641.46,1.172]
[1750179263096,1.14351565,641.65,641.46,1.172]
[1750179263292,1.14351565,641.63,641.46,1.172]
[1750179263991,1.14351565,641.62,641.46,1.172]
[1750179264195,1.14351565,641.64,641.46,1.172]
[1750179266093,1.14351565,641.71,641.46,1.172]
[1750179266300,1.14351565,641.72,641.46,1.172]
[1750179269203,1.14351565,641.71,641.46,1.172]
[1750179269698,1.14351565,641.65,641.46,1.172]
[1750179270303,1.14351565,641.65,641.47,1.304]
[1750179270499,1.14351565,641.58,641.47,1.304]
[1750179275603,1.14351565,641.56,641.47,1.304]
[1750179276207,1.14351565,641.57,641.47,1.304]
[1750179276408,1.14351565,641.56,641.47,1.304]
[1750179276605,1.14351565,641.57,641.47,2.846]
[1750179277009,1.14351565,641.56,641.47,2.846]
[1750179277210,1.14351565,641.57,641.47,2.846]
[1750179277905,1.14351565,641.56,641.47,2.846]
[1750179281009,1.14351565,641.57,641.47,2.846]
[1750179281208,1.14351565,641.56,641.47,2.846]
[1750179284209,1.14351565,641.57,641.47,2.846]
[1750179284407,1.14351565,641.56,641.47,2.846]
[1750179285609,1.14351565,641.57,641.47,2.846]
[1750179285809,1.14351565,641.56,641.47,2.846]
[1750179286013,1.14351565,641.57,641.47,2.846]
[1750179286207,1.14351565,641.56,641.47,2.846]
[1750179286715,1.14351565,641.55,641.47,2.846]
[1750179287113,1.52468754,641.69,641.47,2.846]
[1750179287114,1.14351565,641.56,641.47,2.846]
[1750179287311,1.14351565,641.55,641.47,2.846]
[1750179287712,1.14351565,641.56,641.47,2.846]
[1750179288113,1.14351565,641.55,641.47,2.846]
[1750179289718,0.27119806,641.82,641.47,2.846]
[1750179289719,1.14351565,641.57,641.47,2.846]
[1750179291012,1.14351565,641.58,641.47,2.846]
[1750179295317,1.14351565,641.57,641.47,2.846]
[1750179297423,1.14351565,641.58,641.47,2.846]
[1750179299825,1.14351565,641.57,641.47,2.846]
[1750179300527,1.14351565,641.56,641.47,2.846]
[1750179300927,1.14351565,641.61,641.47,2.846]
[1750179301424,1.14351565,641.6,641.47,2.846]
[1750179301926,1.14351565,641.61,641.47,2.846]
[1750179302127,1.14351565,641.68,641.47,2.846]
[1750179302324,1.14351565,641.73,641.47,2.846]
[1750179302524,1.14351565,641.7,641.47,2.846]
[1750179303325,1.14351565,641.69,641.47,1.542]
[1750179304325,1.14351565,641.7,641.47,1.542]
[1750179304527,1.14351565,641.71,641.47,1.542]
[1750179304730,1.14351565,641.74,641.47,1.542]
[1750179304930,1.14351565,641.75,641.48,1.029]
[1750179305125,1.14351565,641.76,641.48,1.029]
[1750179305430,1.14351565,641.8,641.48,1.029]
[1750179305631,0.31162841,641.79,641.48,1.029]
[1750179306730,1.41471371,641.82,641.48,1.029]
[1750179307127,0.27119806,641.82,641.48,1.029]
[1750179308734,3.81262094,642.74,641.48,1.029]
[1750179308735,1.14351565,641.93,641.48,1.029]
[1750179308936,0.27117693,641.91,641.48,1.029]
[1750179309235,0.27117693,641.91,641.49,1.526]
[1750179309732,1.14351565,642.08,641.49,1.526]
[1750179309940,0.27114524,642.04,641.49,1.526]
[1750179314838,1.14351565,642.27,641.49,1.526]
[1750179315038,0.27109032,642.15,641.49,1.526]
[1750179315439,1.14351565,642.37,641.49,1.526]
[1750179315638,0.27105654,642.25,641.49,1.526]
[1750179316237,1.14351565,642.39,641.49,1.526]
[1750179316537,0.2710312,642.37,641.49,1.526]
[1750179318142,1.41454685,642.37,641.49,1.526]
[1750179318344,0.2710312,642.37,641.49,1.526]
[1750179318542,1.14351565,642.36,641.49,1.526]
[1750179318739,1.14351565,642.35,641.49,1.526]
[1750179318944,1.14351565,642.32,641.49,1.526]
[1750179320342,1.14351565,642.33,641.49,1.526]
[1750179321648,1.14351565,642.33,641.5,1.137]
[1750179321848,1.14351565,642.34,641.5,2.382]
[1750179322146,1.14351565,642.35,641.5,2.382]
[1750179322447,1.14351565,642.36,641.5,2.382]
[1750179326151,1.41454685,642.37,641.5,2.382]
[1750179326354,0.2710312,642.37,641.5,2.382]
[1750179331262,1.14351565,642.34,641.5,2.382]
[1750179331659,1.14351565,642.35,641.5,2.382]
[1750179332163,1.14351565,642.32,641.5,2.382]
[1750179332562,1.14351565,642.31,641.5,2.382]
[1750179333863,1.14351565,642.32,641.5,2.382]
[1750179334364,1.14351565,642.33,641.5,2.382]
[1750179334560,1.14351565,642.35,641.5,2.382]
[1750179334762,0.2710312,642.37,641.5,2.382]
[1750179335360,0.58237824,642.37,641.5,2.382]
[1750179335565,0.31135188,642.36,641.5,2.382]
[1750179338767,0.31135188,642.36,641.5,1.245]
[1750179342272,0.31135188,642.36,641.51,1.367]
[1750179343572,1.45030506,642.36,641.51,1.367]
[1750179344173,1.13895318,642.35,641.51,1.367]
[1750179344674,1.13895318,642.27,641.51,1.367]
[1750179345175,1.13895318,642.28,641.51,1.367]
[1750179345373,1.13895318,642.29,641.51,1.367]
[1750179345576,1.13895318,642.28,641.51,1.367]
[1750179345873,1.13895318,642.27,641.51,1.367]
[1750179346277,1.13895318,642.24,641.51,1.367]
[1750179346780,1.13895318,642.18,641.51,1.367]
[1750179347276,1.13895318,642.17,641.51,1.367]
[1750179347675,1.13895318,642.16,641.51,1.367]
[1750179347880,1.14069328,642.15,641.51,1.367]
[1750179348475,1.14069328,642.17,641.51,1.367]
[1750179350080,1.14069328,642.16,641.51,1.367]
[1750179351183,1.14069328,642.17,641.51,1.367]
[1750179351581,0.31135188,642.36,641.51,1.367]
[1750179351582,1.14069328,642.16,641.51,1.367]
[1750179353585,1.14069328,642.15,641.51,1.367]
[1750179353785,1.51860424,642.29,641.51,1.367]
[1750179353982,1.14303088,642.15,641.51,1.367]
[1750179354580,1.14303088,642.14,641.51,1.367]
[1750179356384,1.14303088,642.13,641.51,1.367]
[1750179356785,1.14303088,642.14,641.51,1.367]
[1750179356982,1.14303088,642.13,641.51,1.367]
[1750179357584,1.14303088,642.12,641.51,1.367]
[1750179358487,1.14303088,642.11,641.51,1.367]
[1750179359584,1.14303088,642.1,641.51,1.367]
[1750179359789,1.14303088,642.09,641.51,1.367]
[1750179360090,1.14303088,642.1,641.51,1.367]
[1750179360584,1.14303088,642.04,641.52,0.965]
[1750179360790,1.14303088,642.01,641.52,0.965]
[1750179360986,1.14303088,641.97,641.52,0.965]
[1750179361391,1.14303088,641.96,641.52,0.965]
[1750179361986,1.14303088,641.94,641.52,0.965]
[1750179362186,1.14303088,641.91,641.52,0.965]
[1750179362487,1.14303088,641.89,641.52,0.965]
[1750179362688,1.14303088,641.87,641.52,0.965]